bitfinex-derivatives/quotes_BTCF0:USTF0_20210406
["timestamp","ask_amount","ask_price","bid_price","bid_amount"]
[1617717708507,1.0,58183.0,58179.0,0.10725655]
[1617717708707,1.0,58183.0,58161.0,0.11486]
[1617717708906,3.3329,58172.0,58162.0,0.07]
[1617717709106,3.3329,58172.0,58162.0,0.19783]
[1617717709507,3.3329,58172.0,58162.0,0.12783]
[1617717709706,3.3329,58172.0,58163.0,0.27]
[1617717709906,1.0,58186.0,58163.0,0.27]
[1617717710207,1.0,58191.0,58163.0,0.27]
[1617717710406,0.4847,58193.0,58163.0,0.27]
[1617717710407,0.4847,58193.0,58179.0,0.10725655]
[1617717711007,0.4847,58193.0,58180.0,1.27]
[1617717711208,0.4847,58193.0,58180.0,0.27]
[1617717712411,0.4847,58193.0,58192.0,0.10725655]
[1617717712710,0.4847,58193.0,58192.0,0.23564655]
[1617717712911,0.4847,58193.0,58192.0,0.24564655]
[1617717717616,0.4847,58193.0,58192.0,1.24564655]
[1617717717817,0.5361,58193.0,58192.0,1.24564655]
[1617717718320,0.4847,58193.0,58192.0,1.24564655]
[1617717719318,0.4847,58193.0,58192.0,0.24564655]
[1617717719517,0.4655,58208.0,58192.0,0.24564655]
[1617717719719,0.4655,58208.0,58192.0,1.24564655]
[1617717719919,0.4655,58208.0,58193.0,1.0]
[1617717720319,0.4655,58208.0,58192.0,0.24564655]
[1617717720320,0.0508,58207.0,58204.0,1.0]
[1617717720518,0.0508,58207.0,58206.0,1.10725655]
[1617717720921,1.0,58235.0,58206.0,1.10725655]
[1617717721122,1.0,58235.0,58206.0,1.36725655]
[1617717721422,1.0,58241.0,58211.0,1.0]
[1617717721822,1.0,58241.0,58212.0,0.27]
[1617717722021,1.0,58242.0,58212.0,1.27]
[1617717722322,1.0,58242.0,58212.0,1.0]
[1617717722522,1.0,58241.0,58217.0,0.10725655]
[1617717722723,3.044,58227.0,58217.0,0.10725655]
[1617717722923,3.044,58227.0,58212.0,0.01]
[1617717723121,1.0,58220.0,58191.0,1.0]
[1617717723424,3.044,58227.0,58183.0,1.0]
[1617717723425,0.0512,58212.0,58183.0,1.0]
[1617717723822,1.0,58213.0,58184.0,1.27]
[1617717724021,1.0,58219.0,58191.0,0.0517]
[1617717724322,1.0,58223.0,58194.0,1.0]
[1617717724523,1.0,58223.0,58196.0,0.10725655]
[1617717724827,0.493,58224.0,58196.0,0.20632655]
[1617717725022,0.493,58224.0,58199.0,1.0]
[1617717725222,0.493,58224.0,58197.0,0.01]
[1617717725524,0.493,58224.0,58200.0,0.27]
[1617717725723,0.493,58224.0,58200.0,0.12783]
[1617717725924,0.493,58224.0,58202.0,1.0]
[1617717726126,0.0511,58223.0,58202.0,1.0]
[1617717726326,0.493,58224.0,58205.0,1.0]
[1617717726528,1.0,58221.0,58208.0,0.10725655]
[1617717726922,1.0,58218.0,58201.0,0.27]
[1617717727123,1.0,58217.0,58201.0,0.27]
[1617717727322,1.0,58217.0,58190.0,0.01]
[1617717727524,1.0,58216.0,58202.0,0.27]
[1617717727725,1.0,58213.0,58202.0,0.27]
[1617717727924,2.6312,58203.0,58198.0,0.01]
[1617717728125,2.6312,58203.0,58189.0,0.26]
[1617717728126,2.6312,58203.0,58192.0,0.27]
[1617717728327,3.6312,58203.0,58192.0,0.27]
[1617717728528,3.6312,58203.0,58199.0,0.01]
[1617717728726,2.6312,58203.0,58194.0,0.10725655]
[1617717728926,2.6312,58203.0,58195.0,0.25]
[1617717729127,2.6312,58203.0,58200.0,0.01898273]
[1617717729527,2.6312,58203.0,58195.0,0.27]
[1617717729726,2.6312,58203.0,58201.0,0.27]
[1617717730127,2.6312,58203.0,58195.0,0.27]
[1617717730429,2.6312,58203.0,58202.0,0.27]
[1617717730628,2.73845655,58203.0,58184.0,0.10725655]
[1617717730828,2.73845655,58203.0,58196.0,0.27]
[1617717731030,2.73845655,58203.0,58202.0,0.27]
[1617717731230,2.73845655,58203.0,58184.0,0.10725655]
[1617717731428,2.73845655,58203.0,58197.0,0.27]
[1617717731728,2.73845655,58203.0,58202.0,0.27]
[1617717732030,2.73845655,58203.0,58198.0,0.27]
[1617717732328,2.73845655,58203.0,58202.0,0.26]
[1617717732528,2.73845655,58203.0,58185.0,0.01]
[1617717732730,2.73845655,58203.0,58170.0,0.10725655]
[1617717732928,3.73845655,58203.0,58170.0,0.10725655]
[1617717733129,1.0,58197.0,58170.0,0.10725655]
[1617717733329,1.0,58197.0,58171.0,0.27]
[1617717733531,1.0,58193.0,58171.0,0.27]
[1617717733728,1.16039,58194.0,58171.0,0.27]
[1617717734029,1.0,58193.0,58171.0,0.27]
[1617717734430,0.16039,58194.0,58171.0,0.27]
[1617717734631,1.0,58195.0,58178.0,0.10725655]
[1617717734829,1.0,58197.0,58178.0,0.10725655]
[1617717735030,1.0,58198.0,58179.0,0.01]
[1617717736133,1.0,58196.0,58179.0,0.01]
[1617717736332,1.0,58195.0,58179.0,0.01]
[1617717736533,0.10725655,58180.0,58179.0,0.01]
[1617717737235,2.60725655,58180.0,58179.0,0.01]
[1617717737435,2.60725655,58180.0,58148.0,1.0]
[1617717737738,3.3161,58149.0,58138.0,0.04634792]
[1617717738138,3.3161,58149.0,58139.0,0.27]
[1617717738537,3.3161,58149.0,58144.0,0.10725655]
[1617717739037,3.3161,58149.0,58145.0,0.27]
[1617717739639,3.3161,58149.0,58147.0,0.27]
[1617717739640,1.0,58148.0,58147.0,0.27]
[1617717739839,3.4415,58148.0,58146.0,0.26]
[1617717740039,3.6415,58148.0,58146.0,0.26]
[1617717740240,1.0,58142.0,58138.0,0.04634792]
[1617717740440,0.2,58146.0,58138.0,0.04634792]
[1617717740641,0.10725655,58139.0,58138.0,0.04634792]
[1617717740839,1.10725655,58139.0,58138.0,0.04634792]
[1617717741042,0.10725655,58139.0,58138.0,0.04634792]
[1617717741239,1.10725655,58139.0,58138.0,0.04634792]
[1617717741641,1.30725655,58139.0,58138.0,0.04634792]
[1617717741840,0.30725655,58139.0,58138.0,0.04634792]
[1617717742041,1.30725655,58139.0,58138.0,0.04634792]
[1617717742640,1.10725655,58139.0,58138.0,0.04634792]
[1617717742840,0.10725655,58139.0,58138.0,0.04634792]
[1617717743041,1.10725655,58139.0,58138.0,0.04634792]
[1617717743343,1.10725655,58139.0,58138.0,0.04532991]
[1617717743542,1.10725655,58139.0,58102.0,1.0]
[1617717743944,2.9877,58103.0,58092.0,1.5]
[1617717744142,2.9877,58103.0,58096.0,1.0]
[1617717744543,2.9877,58103.0,58093.0,0.27]
[1617717744744,2.9877,58103.0,58102.0,0.10725655]
[1617717745145,2.9877,58103.0,58102.0,0.11725655]
[1617717745646,0.4545,58138.0,58102.0,1.61725655]
[1617717745847,3.1609,58120.0,58102.0,1.74316655]
[1617717746748,3.1609,58120.0,58119.0,1.60725655]
[1617717746950,3.1609,58120.0,58119.0,1.73333655]
[1617717747148,3.1609,58120.0,58119.0,2.00333655]
[1617717748550,0.1332,58159.0,58119.0,2.00333655]
[1617717748755,1.0,58157.0,58147.0,0.10725655]
[1617717748952,1.4726,58158.0,58147.0,0.10725655]
[1617717749151,1.4726,58158.0,58148.0,0.27]
[1617717749350,3.1485,58159.0,58148.0,0.39075]
[1617717750656,3.1485,58159.0,58157.0,0.10725655]
[1617717751051,3.1485,58159.0,58158.0,0.27]
[1617717751863,4.1485,58159.0,58158.0,0.27]
[1617717752059,3.1485,58159.0,58158.0,0.39416]
[1617717752651,3.25575655,58159.0,58158.0,0.39416]
[1617717753151,3.25575655,58159.0,58158.0,0.27]
[1617717753553,3.25575655,58159.0,58158.0,0.26898231]
[1617717753956,4.25575655,58159.0,58158.0,0.26898231]
[1617717755653,3.25575655,58159.0,58158.0,0.26898231]
[1617717756052,4.25575655,58159.0,58158.0,0.26898231]
[1617717756353,3.25575655,58159.0,58158.0,0.26898231]
[1617717756555,4.25575655,58159.0,58158.0,0.26898231]
[1617717756752,3.25575655,58159.0,58158.0,0.26898231]
[1617717757054,3.257744,58159.0,58158.0,0.26898231]
[1617717757855,3.25575655,58159.0,58158.0,0.26898231]
[1617717758255,3.25774829,58159.0,58158.0,0.26898231]
[1617717758856,3.25575655,58159.0,58158.0,0.26898231]
[1617717759258,3.25774851,58159.0,58158.0,0.26898231]
[1617717759657,3.25575655,58159.0,58158.0,0.26898231]
[1617717761259,4.25575655,58159.0,58158.0,0.26898231]
[1617717761662,3.25575655,58159.0,58158.0,0.26898231]
[1617717761860,4.25575655,58159.0,58158.0,0.26898231]
[1617717762763,4.25774944,58159.0,58158.0,0.26898231]
[1617717763365,4.15774944,58159.0,58158.0,0.26898231]
[1617717763665,4.15575655,58159.0,58158.0,0.26898231]
[1617717763865,4.1605962,58159.0,58158.0,0.26796454]
[1617717765872,3.1605962,58159.0,58158.0,0.26796454]
[1617717766476,3.1577509,58159.0,58158.0,0.26796454]
[1617717766972,3.15575655,58159.0,58158.0,0.26796454]
[1617717770977,3.0485,58159.0,58158.0,0.31956454]
[1617717771178,3.0485,58159.0,58158.0,0.26796454]
[1617717772778,3.15575655,58159.0,58158.0,0.26796454]
[1617717773079,0.10725655,58159.0,58158.0,0.26796454]
[1617717776581,3.14895655,58159.0,58158.0,0.26796454]
[1617717779284,3.14895655,58159.0,58158.0,0.40299454]
[1617717779884,3.14895655,58159.0,58158.0,0.45529454]
[1617717780085,3.14895655,58159.0,58158.0,0.40299454]
[1617717780384,0.10725655,58159.0,58158.0,0.40299454]
[1617717780984,0.39553137,58159.0,58158.0,0.45379454]
[1617717781185,0.39553137,58159.0,58158.0,0.40299454]
[1617717782288,0.39553137,58159.0,58158.0,0.26796454]
[1617717783188,4.66203137,58159.0,58158.0,0.26796454]
[1617717783588,5.00746809,58159.0,58158.0,0.26796454]
[1617717783786,5.20746809,58159.0,58129.0,0.30239004]
[1617717784187,5.20746809,58159.0,58115.0,0.7609834]
[1617717784188,5.62938703,58159.0,58130.0,0.0509]
[1617717784488,1.0,58137.0,58130.0,0.27]
[1617717784687,1.0,58133.0,58127.0,0.27]
[1617717784891,1.0,58133.0,58115.0,0.7005563]
[1617717784892,0.10725655,58128.0,58124.0,0.27]
[1617717785289,0.10725655,58128.0,58121.0,0.01]
[1617717785491,0.10725655,58128.0,58120.0,0.27]
[1617717785689,3.56085655,58128.0,58125.0,0.26]
[1617717785888,1.0,58121.0,58119.0,0.10725655]
[1617717786088,1.0,58126.0,58121.0,0.27]
[1617717786289,3.56085655,58128.0,58121.0,0.27]
[1617717786488,1.0,58122.0,58120.0,0.01]
[1617717786790,0.15061,58122.0,58114.0,0.27]
[1617717786991,1.0,58121.0,58114.0,0.27]
[1617717787201,1.0,58119.0,58113.0,0.26]
[1617717787394,1.0,58118.0,58115.0,0.27]
[1617717787592,1.0,58116.0,58115.0,0.27]
[1617717787793,1.0,58114.0,58112.0,0.25]
[1617717788189,1.0,58114.0,58109.0,0.04]
[1617717788398,1.0,58114.0,58113.0,0.25]
[1617717788590,1.0,58114.0,58113.0,0.3016]
[1617717788791,1.0,58114.0,58103.0,0.0522]
[1617717788792,1.0,58114.0,58110.0,0.01]
[1617717789089,1.0,58114.0,58106.0,0.25]
[1617717789090,1.10725655,58114.0,58106.0,0.25]
[1617717789298,1.10725655,58114.0,58094.0,0.1281]
[1617717789299,1.10725655,58114.0,58098.0,0.30256373]
[1617717789494,1.0,58113.0,58098.0,0.30256373]
[1617717789692,0.10725655,58114.0,58098.0,0.30256373]
[1617717789895,1.0,58107.0,58095.0,0.30259099]
[1617717790092,1.0,58099.0,58095.0,0.30259099]
[1617717790392,1.0,58099.0,58096.0,0.27]
[1617717790791,2.6852,58104.0,58093.0,0.27]
[1617717790992,1.10725655,58097.0,58093.0,0.27]
[1617717791192,1.10725655,58097.0,58091.0,0.27]
[1617717791393,1.0,58096.0,58094.0,0.27]
[1617717791591,0.10725655,58097.0,58094.0,0.27]
[1617717791793,0.10725655,58097.0,58092.0,0.26]
[1617717791997,1.0,58095.0,58092.0,0.26]
[1617717792192,1.0,58095.0,58090.0,0.01]
[1617717792394,0.10725655,58097.0,58093.0,0.27]
[1617717792596,0.10725655,58097.0,58093.0,0.39649]
[1617717792793,0.10725655,58097.0,58093.0,0.12649]
[1617717792998,0.10725655,58097.0,58094.0,0.37725655]
[1617717793192,0.10725655,58097.0,58094.0,0.27]
[1617717793696,4.3445,58095.0,58090.0,0.27]
[1617717793903,4.3445,58095.0,58089.0,0.00809582]
[1617717794297,1.2,58091.0,58089.0,0.00809582]
[1617717794496,1.2,58091.0,58090.0,0.27]
[1617717794796,0.2,58091.0,58090.0,0.27]
[1617717795002,1.30725655,58091.0,58090.0,0.27]
[1617717795504,0.30725655,58091.0,58090.0,0.261]
[1617717795908,1.30923316,58091.0,58090.0,0.261]
[1617717796101,0.30923316,58091.0,58090.0,0.261]
[1617717796315,2.80923316,58091.0,58090.0,0.261]
[1617717796517,11.54506066,58091.0,58089.0,0.00809582]
[1617717796797,11.54506066,58091.0,58089.0,9.582e-05]
[1617717796997,12.29672766,58091.0,58089.0,9.582e-05]
[1617717797397,2.11327825,58090.0,58044.0,0.30227945]
[1617717797612,2.11327825,58090.0,58025.0,1.5]
[1617717797613,1.7,58089.0,58040.0,0.30228044]
[1617717798097,1.7,58089.0,58037.0,0.36273653]
[1617717798098,0.00196783,58066.0,58041.0,0.27]
[1617717798298,0.12398783,58066.0,58041.0,0.27]
[1617717798501,0.2,58065.0,58038.0,0.27]
[1617717798700,1.0,58042.0,58038.0,0.27]
[1617717798903,3.82810655,58039.0,58038.0,0.10725655]
[1617717799102,3.82810655,58039.0,58038.0,0.11725655]
[1617717799999,2.82810655,58039.0,58038.0,0.11725655]
[1617717800198,2.82810655,58039.0,58038.0,0.01]
[1617717800501,2.82810655,58039.0,58027.0,0.27]
[1617717800699,3.82810655,58039.0,58027.0,0.27]
[1617717801000,0.10725655,58028.0,58026.0,0.10725655]
[1617717801400,0.10725655,58028.0,58027.0,0.01]
[1617717803901,0.10725655,58028.0,58019.0,0.27]
[1617717804101,3.10206051,58046.0,58020.0,1.5]
[1617717804301,3.10206051,58046.0,58027.0,0.27]
[1617717804500,3.10206051,58046.0,58028.0,1.7]
[1617717804501,3.1001,58046.0,58028.0,1.7]
[1617717804900,3.1001,58046.0,58039.0,0.10725655]
[1617717805101,3.1001,58046.0,58040.0,1.5]
[1617717805302,3.1001,58046.0,58040.0,1.77]
[1617717805505,0.00193972,58066.0,58040.0,1.77]
[1617717805801,0.00194034,58068.0,58042.0,1.5]
[1617717806001,0.48743213,58071.0,58042.0,1.5]
[1617717806002,0.4781,58071.0,58042.0,1.5]
[1617717806201,0.4781,58071.0,58042.0,1.77]
[1617717806601,0.4781,58071.0,58043.0,0.2]
[1617717806802,0.4781,58071.0,58044.0,1.5]
[1617717807002,3.7109,58079.0,58069.0,1.60725655]
[1617717807202,3.7109,58079.0,58069.0,1.70437655]
[1617717807403,3.7109,58079.0,58070.0,0.01]
[1617717808206,3.7109,58079.0,58070.0,0.00898079]
[1617717808906,3.7109,58079.0,58071.0,0.0509]
[1617717809106,3.7109,58079.0,58078.0,1.60725655]
[1617717809307,3.7109,58079.0,58078.0,1.87725655]
[1617717809807,0.00194256,58097.0,58078.0,1.87725655]
[1617717810308,0.00194407,58100.0,58078.0,1.87725655]
[1617717810509,0.00194407,58100.0,58079.0,0.2]
[1617717810709,0.00194407,58100.0,58080.0,1.5]
[1617717810908,0.00935003,58102.0,58080.0,1.77]
[1617717810909,0.00194493,58102.0,58080.0,1.77]
[1617717811110,0.00194622,58106.0,58101.0,1.71071655]
[1617717811310,0.00194622,58106.0,58101.0,1.98071655]
[1617717811711,0.00194648,58107.0,58101.0,1.98071655]
[1617717812119,3.0117,58108.0,58101.0,1.98071655]
[1617717812711,0.00195016,58115.0,58101.0,1.98071655]
[1617717812912,0.00937936,58117.0,58101.0,1.98071655]
[1617717812913,0.00195035,58117.0,58101.0,1.98071655]
[1617717813114,0.00195035,58117.0,58115.0,1.5]
[1617717813313,0.00473657,58118.0,58115.0,1.77]
[1617717813612,0.49655149,58119.0,58115.0,1.77]
[1617717813814,0.4946,58119.0,58115.0,1.77]
[1617717816014,0.4821,58119.0,58115.0,1.77]
[1617717816414,0.10725655,58124.0,58115.0,1.77]
[1617717817116,0.10725655,58124.0,58123.0,0.10725655]
[1617717817319,0.10725655,58124.0,58123.0,1.60725655]
[1617717817519,0.10725655,58124.0,58123.0,1.87725655]
[1617717819218,0.01647353,58134.0,58123.0,1.87725655]
[1617717819419,0.22260928,58142.0,58123.0,1.87725655]
[1617717819818,0.33734976,58157.0,58123.0,1.87725655]
[1617717820017,0.33734976,58157.0,58125.0,1.5]
[1617717820432,0.33734976,58157.0,58126.0,0.2]
[1617717820718,0.33734976,58157.0,58128.0,0.2]
[1617717820920,0.337601,58162.0,58129.0,1.5]
[1617717821122,0.337601,58162.0,58156.0,0.10725655]
[1617717821318,0.33771031,58164.0,58157.0,1.5]
[1617717821518,0.33771031,58164.0,58157.0,1.77]
[1617717821718,0.33790761,58167.0,58157.0,1.77]
[1617717822217,0.41297734,58172.0,58157.0,1.77]
[1617717822218,0.33822671,58172.0,58157.0,1.76898201]
[1617717822418,0.33822671,58172.0,58157.0,1.66898201]
[1617717822618,0.3384464,58175.0,58157.0,1.66898201]
[1617717823018,0.44570295,58175.0,58174.0,0.10725655]
[1617717823220,0.10725655,58175.0,58174.0,0.10725655]
[1617717823522,0.10725655,58175.0,58174.0,0.43955058]
[1617717824521,0.10725655,58175.0,58174.0,1.83853259]
[1617717824920,0.33962585,58182.0,58174.0,1.83853259]
[1617717825121,0.33997072,58184.0,58183.0,0.10725655]
[1617717825521,0.34018846,58187.0,58183.0,1.50623856]
[1617717825820,0.34018846,58187.0,58183.0,1.77623856]
[1617717826023,0.44767943,58188.0,58183.0,1.77623856]
[1617717826422,0.10725655,58188.0,58183.0,1.77623856]
[1617717827323,0.10725655,58188.0,58183.0,0.37725655]
[1617717828824,0.34100549,58196.0,58183.0,0.37725655]
[1617717829028,0.34117291,58198.0,58183.0,0.37725655]
[1617717829226,0.34117291,58198.0,58197.0,0.10725655]
[1617717829429,0.34128426,58200.0,58197.0,0.20967655]
[1617717829627,0.34128426,58200.0,58197.0,0.47967655]
[1617717830029,0.34160393,58198.0,58197.0,0.47967655]
[1617717830428,0.34154493,58200.0,58197.0,0.47967655]
[1617717830928,0.34154493,58200.0,58197.0,0.37792043]
[1617717831129,0.10725655,58198.0,58197.0,0.37792043]
[1617717832334,0.10725655,58198.0,58197.0,0.37690291]
[1617717834131,0.3421951,58212.0,58197.0,0.37690291]
[1617717834535,0.3421951,58212.0,58199.0,2.4779]
[1617717834932,0.3421951,58212.0,58200.0,0.27]
[1617717835146,0.3422255,58214.0,58213.0,0.10725655]
[1617717835334,0.3422255,58214.0,58213.0,0.21726655]
[1617717835542,0.34232065,58215.0,58213.0,0.48726655]
[1617717836136,0.34256618,58217.0,58213.0,0.43640432]
[1617717836338,0.80201322,58220.0,58213.0,0.43640432]
[1617717836836,0.4594,58220.0,58213.0,0.43640432]
[1617717837238,0.10725655,58214.0,58213.0,0.43640432]
[1617717837440,0.00725655,58214.0,58213.0,0.43640432]
[1617717838536,0.4594,58220.0,58213.0,0.43640432]
[1617717838537,0.36665655,58220.0,58213.0,0.43640432]
[1617717839136,0.10725655,58214.0,58213.0,0.43640432]
[1617717842539,0.10725655,58214.0,58213.0,0.4353872]
[1617717842740,0.10725655,58214.0,58213.0,0.4869872]
[1617717842941,0.10725655,58214.0,58213.0,0.43161]
[1617717843140,0.10725655,58214.0,58213.0,0.38001]
[1617717843340,1.10725655,58214.0,58213.0,0.27]
[1617717843840,1.10725655,58214.0,58208.0,0.01]
[1617717844143,1.0,58209.0,58182.0,3.1141]
[1617717844342,1.0,58209.0,58163.0,0.4931]
[1617717844742,1.0,58185.0,58164.0,0.27]
[1617717844942,1.13929,58185.0,58164.0,0.27]
[1617717845165,0.9917,58180.0,58163.0,0.10725655]
[1617717845357,1.0,58171.0,58163.0,0.10725655]
[1617717845561,1.0,58170.0,58165.0,0.26]
[1617717845753,1.0,58167.0,58164.0,0.01]
[1617717846162,0.11814,58171.0,58166.0,0.27]
[1617717846361,0.11814,58171.0,58164.0,0.27]
[1617717846542,1.0,58165.0,58164.0,0.27]
[1617717846745,1.0,58165.0,58163.0,0.10725655]
[1617717846943,1.0,58165.0,58164.0,0.27]
[1617717847345,0.10725655,58165.0,58164.0,0.27]
[1617717851056,5.655e-05,58165.0,58164.0,0.27]
[1617717851851,1.0,58181.0,58164.0,0.27]
[1617717852054,1.0,58178.0,58164.0,0.27]
[1617717852252,1.0,58180.0,58164.0,0.27]
[1617717852651,3.3172,58203.0,58164.0,0.27]
[1617717852652,1.0,58177.0,58164.0,0.27]
[1617717853052,1.0,58180.0,58164.0,0.27]
[1617717853352,1.0,58179.0,58176.0,0.10725655]
[1617717853552,1.0,58180.0,58164.0,0.27]
[1617717853851,8.3172,58203.0,58177.0,0.01]
[1617717854052,8.3172,58203.0,58154.0,0.10878]
[1617717854252,8.3172,58203.0,58166.0,0.14138]
[1617717854555,8.3172,58203.0,58178.0,0.02]
[1617717854752,8.3172,58203.0,58166.0,0.14138]
[1617717854952,1.0,58188.0,58179.0,0.27]
[1617717855256,1.0,58190.0,58187.0,0.10725655]
[1617717855852,1.0,58195.0,58187.0,0.106239]
[1617717856055,1.0,58195.0,58188.0,0.26]
[1617717856253,0.4958,58208.0,58188.0,0.26]
[1617717856454,1.0,58195.0,58188.0,0.26]
[1617717856753,1.0,58192.0,58188.0,0.26]
[1617717856953,0.4958,58208.0,58188.0,0.26]
[1617717857156,1.0,58194.0,58188.0,0.26]
[1617717857353,0.10725655,58189.0,58188.0,0.26]
[1617717858960,0.4958,58208.0,58188.0,1.76]
[1617717859459,0.4958,58208.0,58206.0,0.23859655]
[1617717859663,0.4958,58208.0,58207.0,0.27]
[1617717860262,0.487,58212.0,58207.0,0.27]
[1617717861263,0.10725655,58208.0,58207.0,0.27]
[1617717862063,0.487,58212.0,58207.0,0.27]
[1617717862868,0.487,58212.0,58207.0,1.77]
[1617717866369,0.3649,58212.0,58207.0,1.77]
[1617717867068,0.3649,58212.0,58207.0,1.76898285]
[1617717868473,0.353,58212.0,58207.0,1.76898285]
[1617717868674,0.48237883,58229.0,58207.0,1.76898285]
[1617717868675,0.28952785,58216.0,58208.0,0.2]
[1617717868874,0.28952785,58216.0,58209.0,1.5]
[1617717869077,0.28952785,58216.0,58210.0,0.2]
[1617717869274,0.28952785,58216.0,58215.0,0.10725655]
[1617717869674,0.28993293,58219.0,58215.0,0.11725655]
[1617717870175,0.29013275,58224.0,58215.0,0.11725655]
[1617717870374,0.10725655,58229.0,58216.0,0.2]
[1617717870375,0.29028329,58225.0,58216.0,0.2]
[1617717870573,0.34832061,58228.0,58216.0,0.2]
[1617717870773,0.24112061,58228.0,58217.0,0.27]
[1617717870976,0.42580811,58236.0,58218.0,1.5]
[1617717871176,0.42580811,58236.0,58227.0,3.5144]
[1617717871375,0.42594825,58237.0,58235.0,0.10725655]
[1617717871575,0.42594825,58237.0,58235.0,0.21662655]
[1617717871875,0.10725655,58238.0,58236.0,0.26]
[1617717873379,0.01065655,58238.0,58236.0,0.26]
[1617717873579,5.655e-05,58238.0,58236.0,0.26]
[1617717874178,0.4737,58248.0,58236.0,0.26]
[1617717875478,1.0,58247.0,58236.0,0.26]
[1617717875680,0.9213539,58237.0,58236.0,0.26]
[1617717877079,0.9213539,58237.0,58236.0,0.25898323]
[1617717877378,0.9213539,58237.0,58236.0,0.36623978]
[1617717880084,0.43127829,58237.0,58236.0,0.36623978]
[1617717880682,0.43072042,58238.0,58236.0,0.36623978]
[1617717880882,0.11782,58237.0,58236.0,0.36623978]
[1617717881084,0.79253543,58237.0,58236.0,0.36623978]
[1617717882888,0.79253543,58237.0,58236.0,3.30343978]
[1617717883189,0.67471543,58237.0,58236.0,3.30343978]
[1617717883989,0.43068596,58237.0,58236.0,3.30343978]
[1617717884390,0.24402157,58237.0,58236.0,3.30343978]
[1617717884791,0.4310214,58238.0,58236.0,3.30343978]
[1617717885094,0.4310214,58238.0,58236.0,3.41613978]
[1617717887896,0.8397413,58248.0,58236.0,3.41613978]
[1617717887897,0.43211141,58237.0,58236.0,0.47792301]
[1617717888094,0.67613602,58237.0,58236.0,0.47792301]
[1617717888496,0.43211141,58237.0,58236.0,0.47792301]
[1617717888996,0.43260291,58239.0,58236.0,0.47792301]
[1617717889897,0.49179646,58245.0,58236.0,0.47792301]
[1617717889898,0.43297724,58240.0,58236.0,0.47792301]
[1617717890401,0.24399363,58238.0,58236.0,0.47792301]
[1617717890698,0.43341128,58243.0,58236.0,0.47792301]
[1617717891500,0.43341128,58243.0,58242.0,0.10725655]
[1617717891699,0.24399287,58247.0,58242.0,3.80005655]
[1617717891700,0.43300783,58246.0,58242.0,3.80005655]
[1617717891900,0.43300783,58246.0,58242.0,4.07005655]
[1617717892601,0.24399287,58247.0,58242.0,4.07005655]
[1617717894404,0.24399287,58247.0,58242.0,0.37725655]
[1617717896206,0.35414632,58244.0,58242.0,0.37725655]
[1617717896706,0.3539128,58243.0,58242.0,0.37725655]
[1617717897507,0.35360567,58244.0,58242.0,0.37725655]
[1617717898010,0.35353912,58243.0,58242.0,0.37725655]
[1617717898614,0.35354191,58244.0,58242.0,0.37725655]
[1617717899717,0.35278529,58249.0,58242.0,0.37725655]
[1617717900008,0.96316449,58259.0,58242.0,0.37725655]
[1617717900009,0.35268534,58247.0,58242.0,0.37725655]
[1617717900309,0.35275777,58249.0,58242.0,0.37725655]
[1617717900712,0.29394213,58247.0,58242.0,0.37725655]
[1617717901110,0.29353882,58245.0,58242.0,0.37725655]
[1617717902511,0.29339955,58244.0,58242.0,0.37725655]
[1617717903513,0.2935066,58243.0,58242.0,0.37725655]
[1617717904513,0.2935066,58243.0,58242.0,0.42835655]
[1617717905013,0.2935066,58243.0,58242.0,0.37725655]
[1617717905614,1.40076315,58243.0,58242.0,0.37725655]
[1617717906115,0.99673136,58243.0,58242.0,0.37623991]
[1617717906516,0.88947481,58243.0,58242.0,0.37623991]
[1617717906916,0.64548021,58243.0,58242.0,0.37623991]
[1617717908620,0.87217534,58243.0,58242.0,0.37623991]
[1617717908820,0.62818021,58243.0,58242.0,0.37623991]
[1617717909222,0.12818021,58243.0,58242.0,0.37623991]
[1617717909722,0.67421997,58249.0,58242.0,0.37623991]
[1617717910021,1.67421997,58249.0,58242.0,0.37623991]
[1617717910321,0.43028726,58247.0,58242.0,0.37623991]
[1617717910720,1.43028726,58247.0,58242.0,0.37623991]
[1617717911121,0.43028726,58247.0,58242.0,0.37623991]
[1617717911422,0.6741984,58246.0,58242.0,0.37623991]
[1617717911722,0.10725655,58243.0,58242.0,0.37623991]
[1617717912221,0.35125631,58243.0,58242.0,0.37623991]
[1617717914725,0.24399976,58243.0,58242.0,0.37623991]
[1617717914926,0.15349976,58243.0,58242.0,0.37623991]
[1617717915326,0.42934877,58248.0,58242.0,0.37623991]
[1617717915526,0.48788303,58254.0,58242.0,0.37623991]
[1617717915527,0.42941694,58249.0,58242.0,0.37623991]
[1617717915728,0.42941694,58249.0,58248.0,0.10725655]
[1617717916030,0.54952109,58255.0,58248.0,0.37725655]
[1617717916227,0.92286462,58249.0,58248.0,0.37725655]
[1617717916626,0.92286462,58249.0,58248.0,0.37623998]
[1617717916627,1.92286462,58249.0,58248.0,0.37623998]
[1617717916827,0.92286462,58249.0,58248.0,0.37623998]
[1617717917228,1.92286462,58249.0,58248.0,0.37623998]
[1617717917730,2.27410468,58249.0,58248.0,0.37623998]
[1617717918028,1.27410468,58249.0,58248.0,0.37623998]
[1617717918929,1.25490468,58249.0,58248.0,0.37623998]
[1617717919933,1.25250468,58249.0,58248.0,0.37623998]
[1617717920131,1.14524813,58249.0,58248.0,0.37623998]
[1617717920732,0.90126462,58249.0,58248.0,0.37623998]
[1617717922132,1.11004751,58249.0,58248.0,0.37623998]
[1617717922534,0.86606462,58249.0,58248.0,0.37623998]
[1617717923638,0.86606462,58249.0,58248.0,0.10623998]
[1617717923836,2.36606462,58249.0,58248.0,0.10623998]
[1617717924137,3.56606462,58249.0,58248.0,0.10623998]
[1617717924434,3.56606462,58249.0,58205.0,0.44401772]
[1617717924435,9.36030383,58249.0,58205.0,0.44401772]
[1617717924634,1.0,58219.0,58205.0,0.44401772]